[Event "4NCL 2023-2024"]
[Site "Daventry"]
[Date "2024.05.06"]
[Round "11.3"]
[White "Svane, Rasmus"]
[Black "Rowson, Jonathan"]
[Result "1-0"]
[ECO "E16"]
[WhiteElo "2635"]
[BlackElo "2527"]
[Annotator "TA"]
[PlyCount "53"]
[EventDate "2023.11.11"]
[EventType "team-tourn"]
[EventCountry "ENG"]
[SourceTitle "playchess.com"]
[Source "ChessBase"]
[SourceQuality "1"]
[TimeControl "40/6000+30:3000+30"]

{[%evp 17,53,26,33,25,43,33,57,60,56,57,75,72,89,55,81,66,72,75,81,82,125,132,148,154,154,131,152,143,137,137,153,126,137,127,158,104,287,251]} 1. d4 {[%emt 0:00:03]} Nf6 {[%emt 0:00:34]} 2. c4 {[%emt 0:00:08]} e6 {[%emt 0:00:28]} 3. Nf3 {[%emt 0:00:11]} b6 {[%emt 0:03:08]} 4. g3 {[%emt 0:00:08]} Bb7 {[%emt 0:00:45]} 5. Bg2 {[%emt 0:00:09]} Bb4+ {[%emt 0:00:35]} 6. Bd2 {[%emt 0:00:13]} a5 {[%emt 0:00:09]} 7. O-O {[%emt 0:00:15]} O-O {[%emt 0:00:30]} 8. a3 {[%emt 0:06:59]} Bxd2 {[%emt 0:00:29]} 9. Qxd2 {[%emt 0:00:10]} d6 {[%emt 0:06:50]} 10. Qd3 {[%emt 0:05:33]} a4 {[%emt 0:04:22]} 11. Nc3 {[%emt 0:02:23]} Ra5 {[%emt 0:00:39]} 12. Qc2 {[%emt 0:09:08] White is slightly better.} Qe8 {[%emt 0:01:39]} 13. Rfd1 {[%emt 0:16:20]} Na6 {[%emt 0:06:33]} 14. Rac1 {[%emt 0:09:38]} h6 {[%emt 0:02:24]} 15. h3 {[%emt 0:01:59]} Ba8 {[%emt 0:04:22]} 16. e4 {[%emt 0:05:39]} e5 {[%emt 0:01:28]} 17. Re1 {[%emt 0:08:16]} Nh7 {[%emt 0:20:23]} 18. h4 {[%emt 0:02:35] Repels Ng5} Bb7 {[%emt 0:07:58]} 19. Nd5 {[%emt 0:04:26]} Bc8 {[%emt 0:11:25] [#]} 20. c5 $1 {[%emt 0:06:15][%mdl 512]} bxc5 {[%emt 0:00:45]} 21. dxe5 {[%emt 0:00:28]} dxe5 {[%emt 0:00:22]} 22. Bf1 {[%emt 0:04:19]} Nb8 {[%emt 0:00:16]} 23. Qc3 $36 {[%emt 0:08:29][%mdl 2048] Black is under strong pressure.} Nc6 {[%emt 0:00:34]} 24. Nxc7 {[%emt 0:00:51] White has more active pieces. The black rooks are passive.} Qe7 {[%emt 0:03:37]} 25. Nd5 {[%emt 0:00:58]} Qd6 {[%emt 0:00:55]} 26. Red1 {[%emt 0:01:51]} (26. Ne3 $142 {Strongly threatening Nc4.} Be6 27. Bc4) 26... Qb8 $2 {[%emt 0:00:39] [#]} (26... Nf6 $16) 27. Ne7+ $1 {[%emt 0:00:57][%mdl 512] Weighted Error Value: White=0.06 (flawless) /Black=0.25 (precise) .  Loses game:     	---       	Black=1      Mistake:       	White=1     	---        Inaccurate:     	White=1     	Black=2      OK:         	White=9     	Black=5      Best:        	White=1     	Black=2      Brilliant:      	White=1     	---} 1-0

[Event "4NCL 2023-2024"]
[Site "Daventry"]
[Date "2024.05.06"]
[Round "11.4"]
[White "Palliser, Richard J D"]
[Black "Erdos, Viktor"]
[Result "0-1"]
[ECO "D38"]
[WhiteElo "2377"]
[BlackElo "2546"]
[Annotator "TA"]
[PlyCount "82"]
[EventDate "2023.11.11"]
[EventType "team-tourn"]
[EventCountry "ENG"]
[SourceTitle "playchess.com"]
[Source "ChessBase"]
[SourceQuality "1"]
[TimeControl "40/6000+30:3000+30"]

{[%evp 12,82,29,20,34,21,18,5,0,0,0,0,0,2,14,-15,-15,-16,-4,-12,-14,-22,-30,-45,-48,-54,-57,-43,-48,-59,-55,-57,-54,-51,-55,-58,-57,-134,-133,-140,-133,-149,-149,-153,-163,-160,-161,-218,-219,-190,-132,-207,-206,-215,-214,-220,-231,-246,-228,-268,-252,-270,-238,-252,-225,-436,-407,-568,-643,-632,-528,-469,-404]} 1. d4 {[%emt 0:00:05]} Nf6 {[%emt 0:00:12]} 2. c4 {[%emt 0:00:08]} e6 {[%emt 0:00:04]} 3. Nc3 {[%emt 0:00:09]} Bb4 {[%emt 0:00:06]} 4. e3 {[%emt 0:01:46]} d5 {[%emt 0:01:48]} 5. Qa4+ {[%emt 0:01:44]} Nc6 {[%emt 0:00:06]} 6. Nf3 {[%emt 0:03:41]} O-O {[%emt 0:00:11]} 7. Bd2 {[%emt 0:02:27]} Re8 {[%emt 0:11:37][%cal Bf8e8,Be8e5,Be5d5][%mdl 32]} 8. Rd1 {[%emt 0:12:46]} Bf8 {[%emt 0:05:14]} 9. Qc2 {[%emt 0:02:07]} e5 {[%emt 0:19:09] The position is equal.} 10. dxe5 {[%emt 0:17:41]} Nxe5 {[%emt 0:00:20]} 11. Nxe5 {[%emt 0:00:34]} Rxe5 {[%emt 0:00:16]} 12. cxd5 {[%emt 0:00:44]} Nxd5 {[%emt 0:13:05]} 13. Nxd5 {[%emt 0:24:35]} Bf5 {[%emt 0:16:52]} ({Of course not} 13... Qxd5 14. Qxc7 Re7 15. Qc4 $16) 14. Qb3 {[%emt 0:04:10]} Qxd5 {[%emt 0:05:16]} 15. Qxd5 {[%emt 0:02:49]} Rxd5 {[%emt 0:00:02]} 16. Bc4 {[%emt 0:00:18]} Rc5 {[%emt 0:01:10]} 17. Bb3 {[%emt 0:01:44]} a5 {[%emt 0:04:34] White must now prevent ...a4.} 18. Rc1 {[%emt 0:12:41]} Rxc1+ {[%emt 0:10:34]} 19. Bxc1 {[%emt 0:00:05]} a4 {[%emt 0:03:47]} 20. Bc4 {[%emt 0:00:43]} a3 {[%emt 0:00:21]} 21. bxa3 {[%emt 0:04:34]} Bxa3 {[%emt 0:01:47]} 22. Bxa3 {[%emt 0:04:58]} Rxa3 $15 {[%emt 0:00:02][%mdl 4096] Endgame. KRB-KRB} 23. Kd2 {[%emt 0:00:04] Against Rc3} b5 {[%emt 0:05:41]} 24. Bxb5 {[%emt 0:05:18] White is on the road to losing.} ({Better is} 24. e4 $15) 24... Rxa2+ $17 {[%emt 0:00:15]} 25. Kc3 {[%emt 0:00:01][%cal Oe3e4]} Rxf2 {[%emt 0:01:00] Black is more active.} 26. Rf1 {[%emt 0:00:12]} Rc2+ {[%emt 0:03:13]} 27. Kd4 {[%emt 0:00:59]} Be6 {[%emt 0:01:17]} 28. Rg1 {[%emt 0:00:30]} Kf8 {[%emt 0:00:45]} 29. Bd3 {[%emt 0:01:36]} (29. Kd3 $142 Rc5 30. Rb1) 29... c5+ $19 {[%emt 0:01:16]} 30. Ke5 {[%emt 0:01:55] [#]} Rc3 {[%emt 0:00:49]} (30... Rd2 $1 $19 {[%cal Rd2d3]} 31. Be4 Ke7) 31. Be4 {[%emt 0:01:18]} (31. Bxh7 $17 Rxe3+ 32. Be4) 31... Ke7 {[%emt 0:02:05]} ({But not} 31... Rxe3 32. Rc1 $17) 32. Kf4 {[%emt 0:00:35]} Rc4 {[%emt 0:01:52]} 33. Kf3 {[%emt 0:00:11]} f5 {[%emt 0:00:04]} 34. Bb1 {[%emt 0:00:54]} Kf6 {[%emt 0:01:16]} 35. e4 {[%emt 0:00:59]} Rc3+ {[%emt 0:00:10]} 36. Kf2 {[%emt 0:01:43]} f4 {[%emt 0:00:38]} 37. e5+ {[%emt 0:00:17]} Kxe5 {[%emt 0:00:04] And now ...Rb3 would win.} 38. Re1+ $2 {[%emt 0:00:19] [#]} (38. Bxh7 g5 39. Re1+ Kf6 40. Rb1) 38... Re3 $1 {[%emt 0:00:49] Strongly threatening ...Rxe1.} 39. Rxe3+ {[%emt 0:00:09]} (39. Rh1 h6) 39... fxe3+ {[%emt 0:00:01] Black is clearly winning.} 40. Kxe3 {[%emt 0:00:06]} h6 {[%emt 0:00:21]} 41. Bc2 {[%emt 0:52:09]} Ba2 {[%emt 0:50:57] Weighted Error Value: White=0.23 (precise) /Black=0.03 (flawless) .  Mistake:       	White=4     	Black=1      Inaccurate:     	White=2     	---        OK:         	White=8     	Black=20     Best:        	White=3     	Black=2      Brilliant:      	---       	Black=1} 0-1

[Event "4NCL 2023-2024"]
[Site "Daventry"]
[Date "2024.05.06"]
[Round "11.5"]
[White "Lupulescu, Constantin"]
[Black "Camacho Collados, Jose"]
[Result "1-0"]
[ECO "D35"]
[WhiteElo "2588"]
[BlackElo "2366"]
[Annotator "TA"]
[PlyCount "103"]
[EventDate "2023.11.11"]
[EventType "team-tourn"]
[EventCountry "ENG"]
[SourceTitle "playchess.com"]
[Source "ChessBase"]
[SourceQuality "1"]
[TimeControl "40/6000+30:3000+30"]

{[%evp 15,103,18,18,16,11,12,26,31,87,38,41,38,62,72,83,56,54,56,56,45,74,72,91,99,101,112,112,122,255,226,289,262,349,174,175,172,169,174,178,180,181,183,183,184,181,178,188,183,183,183,182,175,245,251,247,237,250,227,256,251,315,187,197,183,213,175,239,231,569,585,579,563,1111,914,3786,2400,29961,29962,29968,29968,29969,29971,29975,29973,29976,29977,29977,29978,29978,29979]} 1. d4 {[%emt 0:00:03]} Nf6 {[%emt 0:00:04]} 2. c4 {[%emt 0:00:03]} e6 {[%emt 0:00:05]} 3. Nc3 {[%emt 0:00:03]} d5 {[%emt 0:00:03]} 4. cxd5 {[%emt 0:00:10]} exd5 {[%emt 0:00:04]} 5. Bg5 {[%emt 0:00:10]} c6 {[%emt 0:00:51]} 6. e3 {[%emt 0:00:07]} h6 {[%emt 0:02:13]} 7. Bh4 {[%emt 0:00:19]} Be7 {[%emt 0:00:06]} 8. Bd3 {[%emt 0:00:17]} O-O {[%emt 0:00:20]} 9. Nge2 {[%emt 0:00:29]} Re8 {[%emt 0:00:20]} 10. O-O {[%emt 0:02:10]} Nh7 {[%emt 0:02:37]} 11. Bg3 {[%emt 0:05:12] White has an edge.} Bh4 {[%emt 0:00:45]} (11... Nf6 $14) 12. Qd2 {[%emt 0:03:03]} (12. Qc2 $16 Nf8 13. Rac1) 12... Bxg3 $14 {[%emt 0:01:31]} 13. Nxg3 {[%emt 0:03:14]} a5 {[%emt 0:03:27]} 14. f3 {[%emt 0:06:04][%cal Bf2f3,Bf3e4,Be4e5,Be5e6][%mdl 32] White is more active.} b6 {[%emt 0:02:44]} 15. Bxh7+ {[%emt 0:04:25]} Kxh7 {[%emt 0:00:08]} 16. e4 {[%emt 0:00:06]} dxe4 {[%emt 0:07:39]} 17. fxe4 {[%emt 0:00:42]} Ra7 {[%emt 0:00:20]} 18. e5 {[%emt 0:22:06]} Ba6 {[%emt 0:02:51]} 19. Rfe1 {[%emt 0:14:21]} c5 {[%emt 0:07:46]} 20. d5 {[%emt 0:00:56]} Rae7 {[%emt 0:00:28]} 21. Qf4 {[%emt 0:01:39] Hoping for Nf5.} Nd7 {[%emt 0:02:18] [#] Black cannot hold the game after this.} (21... Bd3 $16 {was worth a try.}) 22. e6 $1 $18 {[%emt 0:02:36][%mdl 512] Nf5 is the strong threat.} Nf6 {[%emt 0:07:36][%cal Rf7e6]} (22... Nf8 23. Nf5) 23. Nf5 {[%emt 0:16:25]} Nxd5 {[%emt 0:00:40]} 24. Nxd5 {[%emt 0:07:24]} (24. Qg4 $142 {[%csl Gf5][%cal Rg4g7]} fxe6 25. Nxe7 Rxe7 26. Qe4+ (26. Rxe6 Nxc3 27. bxc3 Rxe6 $16) 26... Kh8 27. Rad1 (27. Nxd5 Bb7 $18)) 24... Qxd5 {[%emt 0:01:38]} 25. Re5 {[%emt 0:02:41]} Qc4 {[%emt 0:14:51]} 26. Qxc4 {[%emt 0:00:35]} Bxc4 {[%emt 0:00:05]} 27. Nxe7 {[%emt 0:01:21]} Rxe7 {[%emt 0:00:06]} 28. exf7 {[%emt 0:00:06]} Rxf7 {[%emt 0:00:14][%mdl 4096] Endgame. KRR-KRB} 29. b3 {[%emt 0:00:12]} Bd3 {[%emt 0:01:38]} 30. Rd5 {[%emt 0:05:45]} c4 {[%emt 0:17:08]} 31. Rc1 {[%emt 0:00:10]} Rf4 {[%emt 0:02:30]} 32. h3 {[%emt 0:03:39]} Re4 {[%emt 0:04:25]} 33. a3 {[%emt 0:02:13]} Re2 {[%emt 0:01:35]} (33... Be2 $142) 34. bxc4 {[%emt 0:00:50]} Be4 {[%emt 0:00:11]} 35. Re5 {[%emt 0:03:10]} Rxg2+ {[%emt 0:00:18]} 36. Kf1 {[%emt 0:00:08]} Rh2 {[%emt 0:00:04] Strongly threatening ...Rh1+.} 37. Rc3 {[%emt 0:00:25]} (37. Rxe4 Rh1+ (37... Rxh3 $2 {perishes.} 38. Ke2 $18) 38. Ke2 Rxc1 $17) 37... Bg2+ {[%emt 0:10:44]} 38. Kf2 {[%emt 0:02:25]} (38. Kg1 $142 Rxh3 39. Ree3 Rxe3 40. Rxe3) 38... Bc6+ {[%emt 0:14:13]} 39. Ke1 {[%emt 0:00:21] And now Rg3 would win.} Bd7 {[%emt 0:01:50]} 40. Ree3 {[%emt 0:01:22]} a4 {[%emt 0:01:03]} (40... Bf5 $142 41. Rb3 Rc2) 41. Re7 {[%emt 0:09:40]} Rxh3 {[%emt 0:08:12]} (41... Rh1+ {is tougher.} 42. Kf2 Rh2+ (42... Bxh3 $2 {too greedy.} 43. Rg3 $18) 43. Kg1 Rxh3 44. Rxh3 Bxh3) 42. Rxh3 {[%emt 0:00:06]} Bxh3 {[%emt 0:00:01] KR-KB} 43. Ra7 {[%emt 0:00:22]} Be6 {[%emt 0:01:49]} 44. Rxa4 {[%emt 0:00:19] Threatens to win with Rb4.} h5 {[%emt 0:10:26][%cal Bh6h5,Bh5h4,Bh4h3][%mdl 32]} 45. Rb4 {[%emt 0:02:28]} g5 {[%emt 0:02:48][%cal Bg7g5,Bg5g4][%mdl 32]} 46. Rxb6 {[%emt 0:02:34] White mates.} Bxc4 {[%emt 0:00:07]} 47. a4 {[%emt 0:01:50][%cal Ba3a4,Ba4a5,Ba5a6,Ba6a7][%mdl 32]} h4 {[%emt 0:07:51]} 48. a5 {[%emt 0:00:34]} g4 {[%emt 0:00:54]} 49. Rb4 {[%emt 0:00:51]} Be6 {[%emt 0:00:39]} 50. a6 {[%emt 0:00:38]} h3 {[%emt 0:00:58]} 51. a7 {[%emt 0:01:13]} Bd5 {[%emt 0:00:09]} 52. Rxg4 {[%emt 0:00:05] Weighted Error Value: White=0.15 (very precise) /Black=0.46.  Mistake:       	White=3     	Black=5      Inaccurate:     	White=1     	Black=4      OK:         	White=18    	Black=9      Best:        	White=4     	Black=2      Brilliant:      	White=1     	---} 1-0

[Event "4NCL 2023-2024"]
[Site "Daventry"]
[Date "2024.05.06"]
[Round "11.6"]
[White "Wall, Tim P"]
[Black "Jaracz, Pawel"]
[Result "0-1"]
[ECO "B50"]
[WhiteElo "2203"]
[BlackElo "2470"]
[Annotator "TA"]
[PlyCount "74"]
[EventDate "2023.11.11"]
[EventType "team-tourn"]
[EventCountry "ENG"]
[SourceTitle "playchess.com"]
[Source "ChessBase"]
[SourceQuality "1"]
[TimeControl "40/6000+30:3000+30"]

{[%evp 11,74,-6,-6,-13,-12,-11,0,0,6,8,3,-4,0,-17,0,-11,1,-22,-14,-15,0,0,0,0,0,0,14,-11,29,26,31,0,25,-50,0,-66,-59,-57,-54,-42,-66,-81,-86,-141,-152,-210,-217,-225,-152,-179,-132,-139,-137,-208,-194,-262,-200,-271,-250,-256,-256,-255,-250,-399,-386]} 1. e4 {[%emt 0:02:05]} c5 {[%emt 0:00:16]} 2. Nf3 {[%emt 0:00:27]} d6 {[%emt 0:00:18]} 3. c3 {[%emt 0:01:16]} Nf6 {[%emt 0:00:22]} 4. Be2 {[%emt 0:00:22]} g6 {[%emt 0:00:58]} 5. O-O {[%emt 0:01:45]} Bg7 {[%emt 0:00:16]} 6. d3 {[%emt 0:01:06]} O-O {[%emt 0:00:42]} 7. Be3 {[%emt 0:05:12]} Nc6 {[%emt 0:17:46]} 8. Nbd2 {[%emt 0:00:16]} Ng4 {[%emt 0:02:49]} 9. Bg5 {[%emt 0:03:03] The position is equal.} h6 {[%emt 0:00:22]} 10. Bh4 {[%emt 0:00:34]} Nf6 {[%emt 0:04:25]} 11. Re1 {[%emt 0:05:30]} e5 {[%emt 0:07:42]} 12. Bf1 {[%emt 0:13:31]} Re8 {[%emt 0:07:25]} 13. a3 {[%emt 0:02:11]} Be6 {[%emt 0:02:56]} 14. b4 {[%emt 0:03:10]} a6 {[%emt 0:05:13]} 15. Nb3 {[%emt 0:12:07]} Qb6 {[%emt 0:00:58]} 16. Rb1 {[%emt 0:01:33]} cxb4 {[%emt 0:02:20]} 17. axb4 {[%emt 0:00:49]} Nh5 {[%emt 0:00:21]} 18. Nfd2 {[%emt 0:08:43]} Qc7 {[%emt 0:04:52]} 19. Nc4 {[%emt 0:02:26]} Ne7 {[%emt 0:08:30]} 20. Rc1 {[%emt 0:03:24]} Nf4 {[%emt 0:02:50]} 21. Bg3 {[%emt 0:05:34]} Rad8 {[%emt 0:02:40]} 22. Qd2 {[%emt 0:10:44]} ({White should play} 22. Bxf4 $11 exf4 23. Ncd2) 22... g5 {[%emt 0:01:12]} (22... Nh5 $15) 23. Qb2 {[%emt 0:04:58] [#]} (23. Qc2 $11) 23... Nxd3 $1 $15 {[%emt 0:00:54] Black is more active.} 24. Bxd3 {[%emt 0:02:40]} Bxc4 {[%emt 0:00:03]} 25. Bxc4 {[%emt 0:02:13]} Qxc4 {[%emt 0:00:21]} 26. Na5 {[%emt 0:02:38]} Qc8 {[%emt 0:01:53]} 27. Qa2 {[%emt 0:01:26]} (27. c4 $142) 27... d5 $17 {[%emt 0:01:14]} 28. exd5 {[%emt 0:01:25]} (28. f3 $17) 28... Nxd5 $19 {[%emt 0:00:15]} 29. Nc4 {[%emt 0:01:35]} Qc7 {[%emt 0:04:18]} 30. Ne3 {[%emt 0:07:04]} Nxe3 {[%emt 0:01:52]} (30... Nxc3 $19 {...Rd3 would now be deadly.} 31. Qb2 Rd3) 31. fxe3 $17 {[%emt 0:01:00]} Qb6 {[%emt 0:01:10]} 32. Kh1 {[%emt 0:02:34]} (32. Qa4 $17) 32... e4 $19 {[%emt 0:00:09]} 33. Rf1 {[%emt 0:01:19]} (33. c4 {was necessary.}) 33... Qe6 {[%emt 0:01:04]} ({Weaker is} 33... Qxe3 34. Qxf7+ Kh8 35. Bd6 $11) 34. Qf2 {[%emt 0:01:26]} b5 {[%emt 0:01:05]} 35. Qe2 {[%emt 0:00:41]} Rd3 {[%emt 0:00:19]} 36. Be1 {[%emt 0:00:22]} Qc4 {[%emt 0:04:36][%cal Od3e3]} 37. Qf2 {[%emt 0:00:30] [#]} (37. Kg1 $142) 37... Rxe3 $3 {[%emt 0:00:38][%mdl 512] Weighted Error Value: White=0.29 (precise) /Black=0.16 (very precise) .  Mistake:       	White=7     	Black=2      Inaccurate:     	White=2     	Black=2      OK:         	White=7     	Black=11     Brilliant:      	---       	Black=1} 0-1

[Event "4NCL 2023-2024"]
[Site "Daventry"]
[Date "2024.05.06"]
[Round "11.7"]
[White "Parligras, Mircea-Emilian"]
[Black "Weller, Jean-Luc"]
[Result "1-0"]
[ECO "A17"]
[WhiteElo "2561"]
[BlackElo "2211"]
[Annotator "TA"]
[PlyCount "83"]
[EventDate "2023.11.11"]
[EventType "team-tourn"]
[EventCountry "ENG"]
[SourceTitle "playchess.com"]
[Source "ChessBase"]
[SourceQuality "1"]
[TimeControl "40/6000+30:3000+30"]

{[%evp 16,83,11,0,0,-12,-15,-5,-12,-13,0,0,-6,-33,-32,-51,-55,-72,-61,-66,-35,-28,-25,-49,-24,-31,-34,-35,-42,-71,-58,-63,-62,-72,-71,-96,-57,-58,-42,-83,-79,-82,-39,-66,-81,-167,-168,-178,-177,-181,-179,-166,-130,-173,-181,-171,-203,-197,0,0,265,10,15,3,140,0,4898,2104,1046,983]} 1. c4 {[%emt 0:00:04]} Nf6 {[%emt 0:01:02]} 2. Nc3 {[%emt 0:00:24]} e6 {[%emt 0:00:23]} 3. Nf3 {[%emt 0:00:30]} b6 {[%emt 0:03:44]} 4. g3 {[%emt 0:03:42]} Bb7 {[%emt 0:02:00]} 5. Bg2 {[%emt 0:00:06]} Bb4 {[%emt 0:11:39]} 6. Qc2 {[%emt 0:01:43]} O-O {[%emt 0:01:32]} 7. a3 {[%emt 1:37:31]} Bxc3 {[%emt 1:23:40]} 8. Qxc3 {[%emt 0:00:00]} d5 {[%emt 0:00:30]} 9. cxd5 {[%emt 0:00:00]} Nxd5 {[%emt 0:00:00]} 10. Qc2 {[%emt 0:00:00]} c5 {[%emt 0:00:00]} 11. b3 {[%emt 0:00:00]} Nc6 {[%emt 0:00:00] The position is equal.} 12. Bb2 {[%emt 0:00:00]} Re8 {[%emt 0:00:00]} 13. O-O {[%emt 0:00:00]} e5 {[%emt 0:00:00]} 14. d3 {[%emt 0:00:00]} Nd4 {[%emt 0:00:00]} 15. Qd1 {[%emt 0:00:00]} Nc7 {[%emt 0:00:00]} 16. Nd2 {[%emt 0:00:00]} Bxg2 {[%emt 0:00:00]} 17. Kxg2 {[%emt 0:00:00]} Re6 {[%emt 0:00:00]} 18. b4 {[%emt 0:00:00]} cxb4 {[%emt 0:00:00]} 19. axb4 {[%emt 0:00:00]} Qd7 {[%emt 0:00:00]} 20. e3 {[%emt 0:00:00]} Nc6 {[%emt 0:00:00] Excellent horsemanship.} 21. Nf3 {[%emt 0:00:00]} Rd8 {[%emt 0:00:00][%cal Of7f6]} 22. Rc1 {[%emt 0:00:00]} f6 {[%emt 0:00:00]} (22... Qxd3 $6 23. Qxd3 Rxd3 24. Nxe5 $11) 23. Qa4 {[%emt 0:00:00]} b5 {[%emt 0:00:00]} 24. Qa2 {[%emt 0:00:00]} Nd5 {[%emt 0:00:00]} 25. Ba3 {[%emt 0:00:00]} Ndxb4 {[%emt 0:00:00]} (25... Ncxb4 26. Bxb4 Nxb4 27. Qa5 $15) 26. Bxb4 {[%emt 0:00:00]} Nxb4 {[%emt 0:00:00]} 27. Qb3 {[%emt 0:00:00]} a5 {[%emt 0:00:00]} (27... Nxd3 $6 28. Rc3 Qf7 29. Rxd3 Rxd3 30. Qxd3 $11) 28. Rc5 {[%emt 0:00:00]} Kh8 {[%emt 0:00:00][%cal Oe6b6] Strongly threatening ...Rb6!} (28... Qxd3 29. Qxe6+ Kh8 30. Rfc1 $18) 29. d4 {[%emt 0:00:00][%cal Rd4e5]} Rb6 {[%emt 0:00:00]} 30. dxe5 {[%emt 0:00:00]} (30. Qa3 $17 e4 31. Nd2) 30... Nd3 $19 {[%emt 0:00:00]} 31. Rd1 {[%emt 0:00:00][%cal Od1d3] [#] Rxd3! is the strong threat.} Rbb8 $1 {[%emt 0:00:00]} ({Not} 31... Nxc5 32. Rxd7 Nxd7 (32... Rxd7 $2 {perishes.} 33. Qa3 $18) 33. exf6 Rxf6 (33... Nxf6 34. Ng5 $14) 34. Nd4 $14 (34. Qxb5 Rdf8 $11)) 32. Qa2 {[%emt 0:00:00] [#]} Nf4+ $1 {[%emt 0:00:00][%mdl 512]} 33. exf4 {[%emt 0:00:00]} Qxd1 {[%emt 0:00:00]} 34. exf6 {[%emt 0:00:00]} gxf6 {[%emt 0:00:00]} 35. Qxa5 {[%emt 0:01:34]} b4 {[%emt 0:00:00]} 36. Qa6 {[%emt 0:05:25] [#]} Rd6 {[%emt 0:02:07]} (36... Rf8 $1 $19 {Hoping for ...b3.} 37. Qa7 Qd3) 37. Qa7 $11 {[%emt 0:00:32] Threatening mate with Ng5.} Rbd8 $2 {[%emt 0:02:07][%mdl 8192]} (37... Rdb6 $1 $11) 38. Qf7 $2 $40 {[%emt 0:02:20][%mdl 128] Black needs to defend precisely.} (38. Qe7 $18) 38... Qd3 $1 {[%emt 0:07:50]} 39. f5 {[%emt 0:01:24][%mdl 1024] And now Rc7 would win. White has compensation.} Rg8 {[%emt 0:02:29]} (39... b3 $1 $11) 40. Qe7 {[%emt 0:00:08]} (40. h4 $16) 40... Rg7 {[%emt 0:00:49][%mdl 8192]} (40... Rb6 $11) 41. Rc8+ $18 {[%emt 0:50:18]} Rg8 {[%emt 0:50:18]} 42. Rc7 {[%emt 0:00:10] Weighted Error Value: White=0.32/Black=0.31.  Loses game:     	---       	Black=2      Missed win:     	White=1     	Black=1      Mistake:       	White=2     	Black=1      Inaccurate:     	White=4     	Black=3      OK:         	White=10    	Black=13     Best:        	White=6     	Black=2      Strong:       	---       	Black=2      Brilliant:      	---       	Black=1} 1-0